[Event "44th Chess Olympiad Women 2022"]
[Site "Chennai"]
[Date "2022.07.29"]
[Round "1.24"]
[White "Nguyen, Thi Mai Hung"]
[Black "Khantree, Napat"]
[Result "1-0"]
[ECO "D02"]
[WhiteElo "2223"]
[BlackElo "1362"]
[Annotator "TA"]
[PlyCount "67"]
[EventDate "2022.07.29"]
[EventType "team-tourn"]
[EventCountry "IND"]
[SourceTitle "playchess.com"]
[Source "ChessBase"]
[SourceQuality "1"]
[WhiteTeam "Vietnam"]
[BlackTeam "Thailand"]
[WhiteTeamCountry "VIE"]
[BlackTeamCountry "THA"]
[TimeControl "40/5400+30:1800+30"]

{[%evp 9,67,0,50,39,66,77,69,51,33,18,70,25,29,20,23,26,59,43,89,51,78,15,14,15,28,37,22,16,40,56,97,122,231,63,232,220,233,37,43,57,185,190,185,187,469,459,457,404,392,405,510,383,608,611,605,588,587,599,5435,5289]} 1. d4 {[%emt 0:00:07]} d5 {[%emt 0:00:08]} 2. Nf3 {[%emt 0:00:25]} Nf6 {[%emt 0:00:18]} 3. Bf4 {[%emt 0:01:52]} Bg4 {[%emt 0:00:38]} 4. c4 {[%emt 0:01:19]} e6 {[%emt 0:05:08]} 5. Qb3 {[%emt 0:06:50]} Qc8 {[%emt 0:09:21]} ({Better is} 5... Bd6 $11 6. Bxd6 (6. Qxb7 Nbd7 $11) 6... cxd6) 6. Nc3 $14 {[%emt 0:10:46] D02: 1 d4 d5 2 Nf3 sidelines, including 2...Nf6 3 g3 and 2...Nf6 3 Bf4.} c6 {[%emt 0:08:08]} 7. Ne5 {[%emt 0:06:03][%cal Oe2e4] And now e4! would win. White is more active.} Bf5 {[%emt 0:05:54] Against e4} 8. Rc1 {[%emt 0:01:59] White is slightly better.} Nbd7 {[%emt 0:06:30]} 9. h3 {[%emt 0:02:59] [#]} h6 $146 {[%emt 0:04:00]} (9... Nxe5 $11 10. Bxe5 dxc4 11. Qxc4 Qd8) ({Predecessor:} 9... Nxe5 10. dxe5 Ne4 11. cxd5 exd5 12. g4 Nc5 13. Qd1 Bg6 14. e3 Qd7 15. Bg3 h5 {½-½ (44) Vrana,F (2253)-Hejny,J (2038) Czech Republic 2017}) 10. e3 {[%emt 0:11:56]} Be7 {[%emt 0:00:16]} 11. Be2 {[%emt 0:00:26]} O-O {[%emt 0:06:17]} 12. O-O {[%emt 0:00:49]} Ne4 {[%emt 0:03:41]} 13. Rfd1 {[%emt 0:01:32] Against Nd2} Bh4 {[%emt 0:02:00]} (13... Nxe5 $14 {was preferrable.} 14. Bxe5 Nxc3 15. bxc3 dxc4 16. Bxc4 Rd8) 14. cxd5 {[%emt 0:08:36]} Nxc3 {[%emt 0:03:44]} (14... Bxf2+ 15. Kf1 Nxe5 16. dxe5 Nxc3 17. Qxc3 $16) 15. Qxc3 {[%emt 0:06:50]} (15. Rxc3 exd5 16. Bf3 Nf6 $14) (15. bxc3 $16 {Hoping for Nf3.} exd5 16. c4) 15... exd5 {[%emt 0:06:29]} 16. b4 {[%emt 0:04:17][%cal Bb2b4,Bb4b5][%mdl 32]} Nf6 {[%emt 0:01:42]} 17. Qb2 {[%emt 0:01:49]} Ne4 {[%emt 0:05:42]} 18. Rf1 {[%emt 0:09:20]} Qe6 {[%emt 0:04:18]} 19. b5 {[%emt 0:01:29]} g5 {[%emt 0:13:06]} 20. Bh2 {[%emt 0:01:45][%cal Rb5c6]} f6 {[%emt 0:02:29]} (20... cxb5 $16 21. Qxb5 Rac8 22. Rxc8 Qxc8) 21. Nf3 $2 {[%emt 0:05:31]} ({White should play} 21. bxc6 $18 bxc6 22. Nxc6) 21... Bxh3 $2 {[%emt 0:00:06]} 22. Nxh4 {[%emt 0:04:41]} gxh4 {[%emt 0:00:47]} 23. Bf4 $2 {[%emt 0:02:00]} ({Don't take} 23. gxh3 Qxh3 24. f3 (24. bxc6 $2 Kh8 $19) 24... Ng3 25. bxc6 Kh8) (23. bxc6 $18 bxc6 24. gxh3 Qxh3 25. f3 (25. Rxc6 $2 Kh8 $19)) 23... Kh8 {[%emt 0:03:45] [#] White must now prevent ...Rg8.} 24. Kh2 $1 {[%emt 0:01:09]} ({Don't blunder} 24. gxh3 $2 Qxh3 25. Bg4 Qxg4+ 26. Kh2 Qf3 $19) 24... Bxg2 {[%emt 0:01:21]} 25. Kxg2 $18 {[%emt 0:00:12] The board is on fire.} Rg8+ {[%emt 0:00:25]} 26. Kh2 {[%emt 0:00:11] Strongly threatening bxc6.} h3 $2 {[%emt 0:00:19]} (26... Ng5 {was called for.} 27. Bxg5 fxg5) 27. Bf3 {[%emt 0:02:43]} Ng5 {[%emt 0:03:56]} 28. Bh1 {[%emt 0:02:51]} Qg4 {[%emt 0:00:16] [#] ( -> ...Nf3+)} 29. f3 {[%emt 0:00:08]} Qh4 {[%emt 0:01:33]} 30. Qf2 {[%emt 0:00:17]} Qh5 {[%emt 0:00:30]} (30... Qxf2+ $142 31. Rxf2 cxb5) 31. bxc6 {[%emt 0:02:26] White is clearly winning.} bxc6 {[%emt 0:02:07]} 32. Rxc6 {[%emt 0:01:15]} Raf8 {[%emt 0:00:59]} 33. Rg1 {[%emt 0:00:26]} Nxf3+ {[%emt 0:00:26]} 34. Bxf3 {[%emt 0:00:57] Weighted Error Value: White=0.38/Black=0.55} 1-0

[Event "44th Chess Olympiad Women 2022"]
[Site "Chennai"]
[Date "2022.07.29"]
[Round "1.24"]
[White "Prommuang, Araya"]
[Black "Hoang, Thi Bao Tram"]
[Result "1-0"]
[ECO "B11"]
[WhiteElo "1651"]
[BlackElo "2288"]
[Annotator "TA"]
[PlyCount "69"]
[EventDate "2022.07.29"]
[EventType "team-tourn"]
[EventCountry "IND"]
[SourceTitle "playchess.com"]
[Source "ChessBase"]
[SourceQuality "1"]
[WhiteTeam "Thailand"]
[BlackTeam "Vietnam"]
[WhiteTeamCountry "THA"]
[BlackTeamCountry "VIE"]
[TimeControl "40/5400+30:1800+30"]

{[%evp 9,69,0,22,-14,-2,-12,-4,-7,12,6,6,6,11,0,6,-8,10,-54,-48,-117,-51,-64,-39,-53,-52,-67,-66,-102,-116,-118,-75,-68,-53,-64,-31,-36,-10,-28,25,-38,0,0,142,163,257,175,772,759,692,743,721,617,29982,1214,5102,4782,1783,890,29995,606,4766,4727]} 1. e4 {[%emt 0:00:07]} c6 {[%emt 0:00:28]} 2. Nc3 {[%emt 0:00:31]} d5 {[%emt 0:00:21]} 3. Nf3 {[%emt 0:00:18]} Bg4 {[%emt 0:01:18]} 4. d4 {[%emt 0:00:39]} e6 {[%emt 0:01:07]} 5. Be2 {[%emt 0:00:27]} Bb4 {[%emt 0:02:20]} 6. e5 {[%emt 0:06:52] B11: Caro-Kann: Two Knights Variation.} Bxf3 {[%emt 0:08:19]} 7. Bxf3 {[%emt 0:02:13]} c5 {[%emt 0:02:57]} 8. O-O {[%emt 0:04:11] The position is equal.} Nc6 {[%emt 0:08:44]} 9. a3 $1 {[%emt 0:05:04]} Bxc3 {[%emt 0:04:52]} 10. bxc3 {[%emt 0:00:43]} Nge7 {[%emt 0:00:21] [#]} 11. Bb2 $146 {[%emt 0:15:12]} ({Predecessor:} 11. Bg4 Qd7 12. f4 cxd4 13. cxd4 g6 14. Qd3 Na5 15. Bd2 Nc4 16. Rab1 Nxd2 17. Qxd2 {0-1 (28) Tomulic,V (1852)-Zovko,M (2294) Bol 2013}) 11... O-O {[%emt 0:07:44]} 12. g3 {[%emt 0:06:26]} Rc8 {[%emt 0:04:26][%cal Ba8c8,Bc8c7,Bc7d7][%mdl 32]} 13. Bg2 {[%emt 0:05:08]} (13. Be2 $11) 13... Na5 {[%emt 0:04:26]} 14. f4 {[%emt 0:10:50]} (14. a4 $15) 14... Nc4 {[%emt 0:03:43] Pair of Knights!} (14... Qb6 $17 15. Rb1 Nf5) 15. Bc1 $15 {[%emt 0:00:49]} Qb6 {[%emt 0:01:48]} 16. Qd3 {[%emt 0:08:26]} Rc7 {[%emt 0:03:20]} 17. g4 {[%emt 0:03:22] Against Nf5} Rfc8 {[%emt 0:01:21]} 18. dxc5 {[%emt 0:05:10]} Qxc5+ {[%emt 0:02:54]} 19. Kh1 {[%emt 0:00:36]} Ng6 {[%emt 0:02:32]} 20. Qg3 {[%emt 0:01:41]} Rd7 {[%emt 0:08:32]} 21. h4 {[%emt 0:03:00]} Nb6 {[%emt 0:10:37]} 22. f5 {[%emt 0:03:41]} Nf8 {[%emt 0:01:16]} 23. Bd2 {[%emt 0:01:42]} d4 {[%emt 0:02:14]} ({Black should try} 23... Nc4 24. Bc1 Rdc7) 24. cxd4 {[%emt 0:02:15]} ({White should play} 24. f6 $11) 24... Qxd4 {[%emt 0:00:19]} 25. Bb4 {[%emt 0:00:39]} ({Much weaker is} 25. Be3 Qc3 $15) 25... exf5 {[%emt 0:07:35]} (25... h5 $11) 26. gxf5 $16 {[%emt 0:01:57] aiming for Rae1.} Rc4 {[%emt 0:00:46]} (26... Qc4 $142) 27. e6 {[%emt 0:01:26] Dancing on a razor blade.} Rxb4 $2 {[%emt 0:04:25]} (27... fxe6 28. fxe6 (28. Bxf8 exf5 29. Bb4 Qxh4+ 30. Qxh4 Rxh4+ 31. Kg1 g6 $16) 28... Nxe6) 28. axb4 $18 {[%emt 0:00:41] [#] Hoping for e7.} fxe6 {[%emt 0:00:46]} 29. fxe6 {[%emt 0:01:05]} Nxe6 {[%emt 0:00:08]} 30. Rae1 {[%emt 0:00:46] White threatens c3 and mate.} Nf8 {[%emt 0:00:55]} 31. Rf4 {[%emt 0:04:37]} (31. Qb3+ $142 Nd5 32. Re4 Qf6 33. Rxf6 gxf6 34. Rg4+ Ng6 35. Bxd5+ Kf8 36. Qf3) 31... Qd2 {[%emt 0:01:29]} 32. Qb3+ {[%emt 0:02:03]} Nd5 {[%emt 0:00:42]} 33. Bxd5+ {[%emt 0:00:36]} (33. Rff1 $142) 33... Rxd5 {[%emt 0:00:10] [#]} 34. Ref1 {[%emt 0:00:33]} (34. Rxf8+ $142 $1 {[%mdl 512]} Kxf8 35. Qf3+ Qf4 36. Qxf4+ Rf5 37. Qxf5+ Kg8 38. Re8#) 34... Ne6 {[%emt 0:01:47]} 35. Rf5 {[%emt 0:00:42] Weighted Error Value: White=0.44/Black=0.86} 1-0

[Event "44th Chess Olympiad Women 2022"]
[Site "Chennai"]
[Date "2022.07.29"]
[Round "1.24"]
[White "Burbach, Anya Belle"]
[Black "Bach, Ngoc Thuy Duong"]
[Result "0-1"]
[ECO "B25"]
[WhiteElo "1375"]
[BlackElo "2192"]
[Annotator "TA"]
[PlyCount "48"]
[EventDate "2022.07.29"]
[EventType "team-tourn"]
[EventCountry "IND"]
[SourceTitle "playchess.com"]
[Source "ChessBase"]
[SourceQuality "1"]
[WhiteTeam "Thailand"]
[BlackTeam "Vietnam"]
[WhiteTeamCountry "THA"]
[BlackTeamCountry "VIE"]
[TimeControl "40/5400+30:1800+30"]

{[%evp 20,48,-17,-13,-17,-21,-16,-10,-5,-18,-4,-128,-91,-88,-18,-207,-177,-179,-135,-378,-380,-448,-445,-428,-381,-627,-615,-770,-741,-1433,-1431]} 1. e4 {[%emt 0:00:11]} c5 {[%emt 0:00:12]} 2. Nc3 {[%emt 0:02:11]} Nc6 {[%emt 0:00:19]} 3. f4 {[%emt 0:04:29]} d6 {[%emt 0:03:38]} 4. g3 {[%emt 0:01:44]} g6 {[%emt 0:02:31]} 5. Bg2 {[%emt 0:01:57]} Bg7 {[%emt 0:00:10]} 6. d3 {[%emt 0:03:44]} e6 {[%emt 0:08:19]} 7. Nf3 {[%emt 0:03:50]} Nge7 {[%emt 0:00:15]} 8. O-O {[%emt 0:01:39]} O-O {[%emt 0:00:18]} 9. Ne2 {[%emt 0:03:28]} Rb8 {[%emt 0:13:18]} 10. c3 {[%emt 0:05:44]} b5 {[%emt 0:03:22][%cal Bb7b5,Bb5b4][%mdl 32]} 11. Be3 {[%emt 0:05:41]} b4 {[%emt 0:02:30] B25: Closed Sicilian: 3 g3, lines without early Be3.} 12. Rb1 {[%emt 0:03:38]} Qa5 {[%emt 0:08:31][%cal Rb4c3]} 13. Qc2 {[%emt 0:03:24]} Ba6 {[%emt 0:05:36] The position is equal.} (13... Qxa2 $2 14. Ra1 $18) 14. Nd2 {[%emt 0:06:16] [#]} Rfd8 $146 {[%emt 0:07:14]} (14... Qxa2 $2 15. Ra1 b3 16. Rxa2 $18) ({Predecessor:} 14... Qb5 15. c4 Qa5 16. b3 Rbd8 17. g4 f5 18. gxf5 exf5 19. Nf3 Bc8 20. Rbd1 Qb6 {0-1 (42) Dannenberg,J-Briscoe,C (2137) Swansea 2006}) 15. f5 {[%emt 0:06:00]} (15. Nb3 $11 Qb6 16. g4) 15... exf5 {[%emt 0:02:53]} ({Weaker is} 15... gxf5 16. exf5 Ne5 17. fxe6 Bxd3 18. exf7+ Kh8 19. Qd1 $15) 16. exf5 {[%emt 0:00:28] [#] And now f6 would win.} gxf5 {[%emt 0:00:16]} (16... bxc3 $17 17. bxc3 Ne5 18. Rxb8 Rxb8) 17. Bxc6 {[%emt 0:04:27]} (17. Nb3 $11 {and White stays safe.} Qa4 18. c4) 17... Nxc6 $19 {[%emt 0:00:06][%cal Be7c6,Bc6e5,Be5f3][%mdl 32]} 18. Nb3 {[%emt 0:01:59]} Qc7 {[%emt 0:08:05] White must now prevent ...Re8.} 19. Rxf5 $2 {[%emt 0:02:12] This costs White the game.} (19. Nf4 $17) 19... Re8 {[%emt 0:00:50]} 20. Bg5 {[%emt 0:03:11]} Ne5 {[%emt 0:00:34]} 21. c4 {[%emt 0:09:41]} Bb7 {[%emt 0:04:53][%cal Ba6b7,Bb7e4,Be4f5][%mdl 32] [#] ( -> ...Qc6)} 22. d4 $2 {[%emt 0:09:02]} (22. g4) 22... Nf3+ {[%emt 0:01:30] Black is clearly winning.} 23. Kf2 {[%emt 0:01:53]} Be4 {[%emt 0:07:11] This bishop pair is nice.} 24. Qd1 {[%emt 0:02:14]} Bxf5 {[%emt 0:02:25] Weighted Error Value: White=1.20/Black=0.17 (very precise)} 0-1

[Event "44th Chess Olympiad Women 2022"]
[Site "Chennai"]
[Date "2022.07.29"]
[Round "1.25"]
[White "Gueci, Tea"]
[Black "Kaslan, Victoria"]
[Result "1-0"]
[ECO "B51"]
[WhiteElo "2254"]
[BlackElo "1477"]
[Annotator "TA"]
[PlyCount "67"]
[EventDate "2022.07.29"]
[EventType "team-tourn"]
[EventCountry "IND"]
[SourceTitle "playchess.com"]
[Source "ChessBase"]
[SourceQuality "1"]
[WhiteTeam "Italy"]
[BlackTeam "Surinam"]
[WhiteTeamCountry "ITA"]
[BlackTeamCountry "SUR"]
[TimeControl "40/5400+30:1800+30"]

{[%evp 11,67,11,16,12,11,7,33,15,33,34,46,50,73,80,110,88,96,96,152,148,195,202,201,182,192,199,201,179,191,146,345,369,450,306,399,422,517,515,509,502,589,591,538,571,571,534,840,841,795,634,1429,1400,1382,1206,1460,658,2914,2807]} 1. e4 {[%emt 0:00:05]} c5 {[%emt 0:00:18]} 2. Nf3 {[%emt 0:00:06]} d6 {[%emt 0:00:28]} 3. Bb5+ {[%emt 0:00:06]} Nd7 {[%emt 0:00:48]} 4. d4 {[%emt 0:00:14]} cxd4 {[%emt 0:00:56]} 5. Qxd4 {[%emt 0:01:43]} a6 {[%emt 0:01:16]} 6. Bxd7+ {[%emt 0:00:33]} Bxd7 {[%emt 0:00:40]} 7. c4 {[%emt 0:02:22] B51: Sicilian: Moscow Variation (3 Bb5+) without 3...Bd7.} e5 {[%emt 0:06:48]} 8. Qd3 {[%emt 0:00:32]} Nf6 {[%emt 0:00:17]} 9. O-O {[%emt 0:01:52] White is slightly better.} Be7 {[%emt 0:00:45]} 10. Bg5 {[%emt 0:03:05]} Bc6 {[%emt 0:07:07]} 11. Nc3 {[%emt 0:05:59]} Qc7 {[%emt 0:04:40]} 12. Rfd1 {[%emt 0:02:52] [#] White is more active.} Rd8 $146 {[%emt 0:03:32]} ({Predecessor:} 12... Nd7 13. Be3 O-O 14. Rac1 Rfc8 15. Ne1 Qd8 16. Nc2 Nc5 17. Bxc5 dxc5 18. Qg3 Qb6 {1-0 (30) Wolf,A-Schwahn,C Mecklenburg VP 1999}) 13. Rac1 {[%emt 0:02:37]} O-O {[%emt 0:07:16]} 14. b4 {[%emt 0:03:01][%cal Bb2b4,Bb4b5,Bb5a6][%mdl 32] Strongly threatening b5.} b6 {[%emt 0:17:34]} (14... Nh5 $142) 15. b5 $16 {[%emt 0:03:53]} Bb7 {[%emt 0:08:52]} (15... Ba8 $16 {is a better defense.} 16. bxa6 Qa7) 16. Bxf6 $18 {[%emt 0:04:11]} Bxf6 {[%emt 0:00:31]} 17. bxa6 {[%emt 0:02:24]} Ba8 {[%emt 0:07:47]} 18. Nd5 {[%emt 0:05:05]} Bxd5 {[%emt 0:04:27]} 19. cxd5 {[%emt 0:00:24]} ({Resist} 19. Qxd5 $6 Ra8 $16) 19... Qa7 {[%emt 0:02:01]} 20. Rc6 {[%emt 0:02:10] [#] And now Rb1 would win.} Rd7 $2 {[%emt 0:01:59]} (20... Ra8 $16 {might work better.} 21. Rxd6 Qxa6 22. Qxa6 Rxa6) 21. Rb1 {[%emt 0:06:59]} Rb8 {[%emt 0:01:59]} 22. Nd2 {[%emt 0:06:38][%cal Bf3d2,Bd2c4,Bc4b6,Bb6d7][%mdl 32] Qb5 is the strong threat.} Bd8 {[%emt 0:02:54]} 23. Qb5 {[%emt 0:03:53]} h6 {[%emt 0:08:37] White is clearly winning.} 24. Nc4 {[%emt 0:01:38][%csl LRb6,LRd6]} Bc7 {[%emt 0:00:54]} 25. a4 {[%emt 0:00:58][%cal Ba2a4,Ba4a5][%mdl 32]} Kh7 {[%emt 0:06:21]} 26. Nxb6 {[%emt 0:02:20]} Re7 {[%emt 0:01:41]} 27. a5 {[%emt 0:00:45]} g6 {[%emt 0:00:38]} 28. Qd3 {[%emt 0:03:45]} Ree8 {[%emt 0:02:12]} 29. h4 {[%emt 0:03:33]} Kg7 {[%emt 0:00:41]} 30. Rb3 {[%emt 0:01:42]} Kg8 {[%emt 0:00:48]} 31. Nd7 {[%emt 0:01:07]} Rxb3 {[%emt 0:00:24]} 32. Qxb3 {[%emt 0:01:00]} Bd8 {[%emt 0:00:46] [#]} 33. Rxd6 {[%emt 0:02:35]} (33. Qb8 $142 $1 Qxd7 34. Rc8) 33... Bxh4 {[%emt 0:00:34]} 34. Qb6 {[%emt 0:01:43] Black did not feel at home in the position after the opening.  Weighted Error Value: White=0.30/Black=0.42} 1-0

[Event "44th Chess Olympiad Women 2022"]
[Site "Chennai"]
[Date "2022.07.29"]
[Round "1.25"]
[White "Cassi, Elisa"]
[Black "Wijnhard, Joelle"]
[Result "1-0"]
[WhiteElo "1922"]
[BlackElo "1291"]
[Annotator "TA"]
[PlyCount "14"]
[EventDate "2022.07.29"]
[EventType "team-tourn"]
[EventCountry "IND"]
[SourceTitle "playchess.com"]
[Source "ChessBase"]
[SourceQuality "1"]
[WhiteTeam "Italy"]
[BlackTeam "Surinam"]
[WhiteTeamCountry "ITA"]
[BlackTeamCountry "SUR"]
[TimeControl "40/5400+30:1800+30"]

{[%evp 9,14,100,108,84,108,82,83]} 1. e4 {[%emt 0:00:04]} c5 {[%emt 0:00:20]} 2. Nf3 {[%emt 0:00:05]} d6 {[%emt 0:00:35]} 3. d4 {[%emt 0:00:06]} Bd7 {[%emt 0:01:07]} 4. dxc5 {[%emt 0:00:45]} Qa5+ {[%emt 0:01:38]} 5. Nc3 {[%emt 0:00:18]} Qxc5 {[%emt 0:00:29] White is better.} 6. Be3 {[%emt 0:00:16] [#] B53: Sicilian: 2...d6: Lines with Qxd4.} Qc8 $146 {[%emt 0:02:45]} ({Predecessor:} 6... Qb4 7. a3 Qa5 8. Bd3 e5 9. h3 Be7 10. O-O Nf6 11. Bc4 Bc6 12. Qd3 a6 13. Bxf7+ Kxf7 {1-0 (21) Goehring,D-Hoegen,H freechess.de 2015}) 7. Qd2 {[%emt 0:02:02] White is much more active.} Nc6 {[%emt 0:03:47]} 1-0

[Event "44th Chess Olympiad Women 2022"]
[Site "Chennai"]
[Date "2022.07.29"]
[Round "1.25"]
[White "Kaslan, Catherine"]
[Black "Brunello, Marina"]
[Result "0-1"]
[ECO "B90"]
[WhiteElo "1872"]
[BlackElo "2341"]
[Annotator "TA"]
[PlyCount "86"]
[EventDate "2022.07.29"]
[EventType "team-tourn"]
[EventCountry "IND"]
[SourceTitle "playchess.com"]
[Source "ChessBase"]
[SourceQuality "1"]
[WhiteTeam "Surinam"]
[BlackTeam "Italy"]
[WhiteTeamCountry "SUR"]
[BlackTeamCountry "ITA"]
[TimeControl "40/5400+30:1800+30"]

{[%evp 17,86,27,28,27,11,17,24,7,22,33,28,27,32,35,35,20,29,0,28,-42,-35,-31,-38,-29,-50,-36,47,27,51,0,0,0,0,0,8,0,0,0,0,0,0,0,0,0,0,0,0,0,0,0,0,-236,-214,-412,-412,-406,-381,-412,-403,-403,-320,-12837,-12838,-12838,-12837,-12837,-12838,-29995,-29996,-29996,-29997]} 1. e4 {[%emt 0:00:14]} c5 {[%emt 0:00:09]} 2. Nf3 {[%emt 0:00:19]} d6 {[%emt 0:00:10]} 3. d4 {[%emt 0:00:39]} cxd4 {[%emt 0:00:16]} 4. Nxd4 {[%emt 0:00:13]} Nf6 {[%emt 0:00:05]} 5. Nc3 {[%emt 0:00:48]} a6 {[%emt 0:00:05]} 6. Be3 {[%emt 0:00:35]} e5 {[%emt 0:00:19]} 7. Nb3 {[%emt 0:00:48]} Be6 {[%emt 0:00:14]} 8. f3 {[%emt 0:03:21]} h5 {[%emt 0:00:18]} 9. Qd2 {[%emt 0:04:43]} Nbd7 {[%emt 0:00:46]} 10. Nd5 {[%emt 0:02:15] The main line 10.Nd5 scores better than 10.0-0-0. B90: Sicilian Najdorf: Unusual White 6th moves, 6 Be3 Ng4 and 6 Be3 e5.} Bxd5 {[%emt 0:00:39]} 11. exd5 {[%emt 0:00:16]} g6 {[%emt 0:09:30]} 12. c4 {[%emt 0:08:44] White has an edge.} b6 {[%emt 0:00:00]} 13. Bd3 {[%emt 0:02:54]} Bg7 {[%emt 0:00:00]} 14. O-O {[%emt 0:04:13]} a5 {[%emt 0:00:00]} 15. Rae1 {[%emt 0:11:45]} O-O {[%emt 0:00:00] [#]} 16. Bg5 $146 {[%emt 0:09:55]} ({Predecessor:} 16. a4 Nc5 17. Nxc5 bxc5 18. b3 Nd7 19. f4 exf4 20. Bxf4 Ne5 21. Bc2 Qb6 22. Kh1 {0-1 (52) Grimm,G (2146)-Chylewski,P (2294) Lodz 2022}) 16... Qc7 {[%emt 0:03:01]} 17. Nc1 {[%emt 0:09:31]} Rae8 {[%emt 0:03:50]} 18. Ne2 {[%emt 0:20:10]} (18. Kh1 $11) 18... e4 $15 {[%emt 0:08:06]} 19. fxe4 {[%emt 0:00:31]} Nxe4 {[%emt 0:00:23]} 20. Bxe4 {[%emt 0:00:46]} Rxe4 {[%emt 0:00:14]} 21. b3 {[%emt 0:00:43]} Ree8 {[%emt 0:30:30]} (21... Qc5+ $15 22. Kh1 b5) 22. Nc3 $14 {[%emt 0:03:40] Be7 is the strong threat.} Nc5 {[%emt 0:02:14]} 23. Bf6 {[%emt 0:03:28]} (23. Nb5 $14 Qd7 24. Be3) 23... Rxe1 {[%emt 0:03:23]} 24. Qxe1 {[%emt 0:02:21]} Qd7 {[%emt 0:00:24]} 25. Bxg7 {[%emt 0:01:01]} Kxg7 {[%emt 0:00:05]} 26. Rf3 {[%emt 0:00:26]} (26. Qg3 {seems wilder.} Re8 27. Nb5 Ne4 28. Qe3) 26... Re8 {[%emt 0:02:22]} 27. Re3 {[%emt 0:01:06]} Rxe3 {[%emt 0:00:43]} 28. Qxe3 $11 {[%emt 0:00:04][%mdl 4096] Endgame KQN-KQN} Qf5 {[%emt 0:00:30]} 29. Qd4+ {[%emt 0:02:21]} Kh7 {[%emt 0:07:29]} 30. Qf2 {[%emt 0:00:32]} Qd7 {[%emt 0:03:10]} 31. Qf6 {[%emt 0:01:19]} Kg8 {[%emt 0:00:24]} 32. Nb5 {[%emt 0:01:28]} Ne4 {[%emt 0:02:15]} 33. Qd4 {[%emt 0:00:45]} Qg4 {[%emt 0:02:53] Strongly threatening ...Qe2.} 34. h3 $2 {[%emt 0:02:36]} (34. Nc3 $11 {and White stays safe.} Nxc3 35. Qxc3) 34... Qf4 $19 {[%emt 0:00:31]} 35. Nxd6 $2 {[%emt 0:00:40]} (35. Nc7 {was the only chance.} g5 36. Ne8) 35... Qc1+ {[%emt 0:00:37][%mdl 64] [#] Zwischenzug} 36. Kh2 {[%emt 0:00:06]} Nxd6 {[%emt 0:01:20]} 37. Qxb6 {[%emt 0:00:15]} Qf4+ {[%emt 0:00:57]} 38. Kg1 {[%emt 0:00:34]} Nf5 {[%emt 0:06:06] White must now prevent ...Ne3.} 39. Qd8+ $2 {[%emt 0:01:47]} (39. Qf2 Qe5 40. Qf1) 39... Kg7 {[%emt 0:00:23]} 40. Qxa5 {[%emt 0:01:54]} Qe3+ {[%emt 0:02:31]} 41. Kh2 {[%emt 0:30:24]} h4 {[%emt 0:30:16] [#] ( -> ...Qf4+)} 42. Qc7 {[%emt 0:00:48] Against Qf4+} Ng3 {[%emt 0:00:38]} 43. Qd6 {[%emt 0:00:30]} Qe1 {[%emt 0:00:37] Weighted Error Value: White=0.54/Black=0.10 (very precise)} 0-1

[Event "44th Chess Olympiad Women 2022"]
[Site "Chennai"]
[Date "2022.07.29"]
[Round "1.25"]
[White "Kaslan, Alexandra"]
[Black "Raccanello, Marianna"]
[Result "0-1"]
[WhiteElo "1435"]
[BlackElo "2067"]
[Annotator "TA"]
[PlyCount "37"]
[EventDate "2022.07.29"]
[EventType "team-tourn"]
[EventCountry "IND"]
[SourceTitle "playchess.com"]
[Source "ChessBase"]
[SourceQuality "1"]
[WhiteTeam "Surinam"]
[BlackTeam "Italy"]
[WhiteTeamCountry "SUR"]
[BlackTeamCountry "ITA"]
[TimeControl "40/5400+30:1800+30"]

{[%evp 13,15,0,-4,-5]} 1. d4 {[%emt 0:00:07]} Nf6 {[%emt 0:00:06]} 2. Nf3 {[%emt 0:00:13]} e6 {[%emt 0:00:06]} 3. c4 {[%emt 0:00:28]} b6 {[%emt 0:00:08]} 4. Nc3 {[%emt 0:00:55]} Bb4 {[%emt 0:01:26]} 5. Bd2 {[%emt 0:01:23]} Bb7 {[%emt 0:01:09]} 6. e3 {[%emt 0:01:15]} O-O {[%emt 0:00:36]} 7. Bd3 {[%emt 0:01:56]} d5 {[%emt 0:02:16]} 8. Rc1 {[%emt 0:03:26][%mdl 32768] [#] Not much happened in this game. Loss on time!? E52: Nimzo-Indian: Rubinstein: 4...0-0 5 Nf3 d5 6 Bd3 b6.} {Predecessor:} dxc4 $146 9. Bxc4 a6 10. O-O Nbd7 11. Ne4 Bxd2 12. Nexd2 c5 13. Be2 cxd4 14. Nxd4 Rc8 15. Bf3 Rxc1 16. Qxc1 Qb8 17. Bxb7 Qxb7 18. Qc6 Qb8 19. Rc1 {½-½ (19) Aleksandrov,A (2574)-Paravyan,D (2627) Moscow 2019} 0-1